bitfinex/quotes_ETHUSD_20220105
["timestamp","ask_amount","ask_price","bid_price","bid_amount"]
[1641342550549,2.49181793,3790.0,3789.5,0.00909477]
[1641342550751,0.65993,3789.8,3789.5,0.00909477]
[1641342550949,0.65993,3789.8,3789.1,0.01136847]
[1641342551150,0.65993,3789.8,3788.8,6.14]
[1641342551151,0.95993,3789.8,3788.9,0.01250531]
[1641342551353,0.3,3789.8,3788.9,0.01250531]
[1641342551752,0.3,3789.8,3789.0,1.13051599]
[1641342552152,0.3,3789.8,3789.1,0.01136847]
[1641342552553,0.6599772,3789.5,3789.1,0.01136847]
[1641342553118,0.65997,3789.4,3789.1,0.01136847]
[1641342553317,0.65997,3789.4,3788.9,0.01250531]
[1641342554018,0.65997,3789.4,3788.9,1.42113992]
[1641342554418,1.31996,3789.7,3789.0,0.01193689]
[1641342554619,0.3,3789.8,3789.0,0.01193689]
[1641342555021,0.382,3790.0,3789.0,0.01193689]
[1641342555621,1.3195928,3790.4,3789.2,0.65979]
[1641342555821,1.3195928,3790.4,3790.1,1.21326231]
[1641342556020,1.3195928,3790.4,3789.4,1.14031422]
[1641342556021,0.65979,3790.4,3789.4,1.14031422]
[1641342556220,0.65979,3790.4,3790.2,0.00511581]
[1641342556421,0.65979,3790.4,3789.5,0.00909477]
[1641342556862,0.65984,3790.1,3789.5,0.00909477]
[1641342557063,0.65984,3790.1,3789.6,1.27065775]
[1641342557463,0.65984,3790.1,3789.7,0.00795793]
[1641342565153,0.65981,3790.3,3789.7,0.00795793]
[1641342566755,0.65977,3790.5,3789.7,0.00795793]
[1641342566955,1.0992,3791.0,3789.7,0.00795793]
[1641342566956,3.8842,3791.2,3789.7,0.81715793]
[1641342567154,4.2289558,3791.5,3789.7,0.81715793]
[1641342567357,4.2289558,3791.5,3789.8,1.3266495]
[1641342567358,0.01599314,3791.5,3789.8,1.3266495]
[1641342567655,1.33533314,3791.5,3790.0,0.65966]
[1641342567854,1.33533314,3791.5,3790.1,1.33666725]
[1641342567855,0.65967,3791.1,3790.1,1.33666725]
[1641342568110,0.65967,3791.1,3790.1,1.34235148]
[1641342568309,0.65967,3791.1,3790.2,0.00511581]
[1641342568709,0.65967,3791.1,3790.1,0.00568423]
[1641342568912,0.65967,3791.1,3789.9,0.00682108]
[1641342569509,3.985,3791.4,3789.9,3.37888811]
[1641342569710,0.65963,3791.4,3789.9,2.71923811]
[1641342569910,0.382,3791.6,3790.0,0.00625266]
[1641342570111,0.682,3791.6,3790.0,0.00625266]
[1641342570312,0.0022737,3791.5,3790.0,0.00625266]
[1641342570712,0.682,3791.6,3790.2,1.31909]
[1641342570713,0.00170527,3791.4,3790.2,1.31909]
[1641342570912,0.00170527,3791.4,3791.1,1.2193466]
[1641342571116,0.00113685,3791.3,3791.1,1.2193466]
[1641342573157,0.00113685,3791.3,3790.3,2.46364738]
[1641342573354,0.00113685,3791.3,3790.3,0.00454738]
[1641342573355,2.87741671,3791.3,3790.3,0.00454738]
[1641342573554,1.0,3791.2,3790.4,0.00397896]
[1641342573756,0.382,3791.1,3789.9,0.00682108]
[1641342573958,0.382,3791.1,3789.7,3.8402]
[1641342573959,1.3195679,3791.0,3789.8,0.0073895]
[1641342574155,0.382,3790.9,3789.8,0.0073895]
[1641342574355,0.382,3790.9,3790.3,1.29644762]
[1641342574356,0.982,3790.9,3790.3,1.29644762]
[1641342574555,0.6598,3790.6,3790.3,1.29644762]
[1641342574755,1.3195917,3790.6,3790.4,0.00397896]
[1641342574955,1.6195917,3790.6,3790.4,0.00397896]
[1641342575155,1.9195917,3790.6,3790.4,0.00397896]
[1641342576310,1.3195917,3790.6,3790.4,0.00397896]
[1641342577312,0.6598,3790.6,3790.4,0.00397896]
[1641342577510,0.6597489,3790.7,3790.4,0.00397896]
[1641342577711,0.65973,3790.8,3790.4,0.00397896]
[1641342577908,1.04173,3790.8,3790.4,0.00397896]
[1641342578310,1.31943,3791.2,3790.5,1.16505776]
[1641342578510,0.65969,3791.1,3790.5,1.16505776]
[1641342578710,0.65968,3791.0,3790.6,0.00284211]
[1641342578915,0.38313685,3791.3,3790.6,0.00284211]
[1641342580453,0.65965,3791.2,3790.6,0.00284211]
[1641342581053,0.65965,3791.2,3790.3,1.29644762]
[1641342581054,0.65965,3791.2,3790.4,0.00397896]
[1641342582856,0.6597044,3791.0,3790.4,0.00397896]
[1641342583104,1.3193944,3791.0,3790.4,0.00397896]
[1641342583403,0.65969,3791.0,3790.4,0.00397896]
[1641342588859,1.6193338,3791.2,3790.4,0.00397896]
[1641342589257,0.9596738,3791.2,3790.4,0.00397896]
[1641342589459,0.6597007,3791.0,3790.4,0.00397896]
[1641342590359,0.65967,3791.1,3790.4,0.00397896]
[1641342591806,0.00113685,3791.3,3790.5,0.65958]
[1641342592005,0.00113685,3791.3,3790.6,0.6594933]
[1641342592203,0.00113685,3791.3,3790.8,15.42]
[1641342592502,0.00113685,3791.3,3790.9,2.63361667]
[1641342592702,0.00113685,3791.3,3791.0,2.51628834]
[1641342592904,0.00113685,3791.3,3791.1,0.65939]
[1641342593103,0.00113685,3791.3,3791.1,1.3188177]
[1641342593505,0.36292179,3792.8,3791.2,5.45]
[1641342593703,0.36292179,3792.8,3791.1,0.6594277]
[1641342593704,0.36292179,3792.8,3791.1,2.49427986]
[1641342593904,0.00795793,3792.7,3791.0,3.65768834]
[1641342594107,0.00795793,3792.7,3791.5,0.65945]
[1641342594108,0.65948,3792.3,3791.5,0.65945]
[1641342594556,0.00511581,3792.2,3791.5,1.88279933]
[1641342594754,0.00511581,3792.2,3791.5,1.22334933]
[1641342594953,0.65948,3792.3,3791.5,1.22334933]
[1641342594954,0.00454739,3792.1,3791.5,1.22334933]
[1641342595354,0.00397896,3792.0,3791.5,1.88280933]
[1641342595753,0.00341054,3791.9,3791.5,1.88280933]
[1641342596155,0.00284212,3791.8,3791.5,1.88280933]
[1641342596657,0.00227369,3791.7,3791.5,1.88280933]
[1641342597056,0.00170527,3791.6,3791.5,1.88280933]
[1641342598806,0.00170527,3791.6,3791.5,4.32269788]
[1641342599808,5.27e-06,3791.6,3791.5,3.09934855]
[1641342600008,5.27e-06,3791.6,3791.5,13.24434855]
[1641342600208,5.27e-06,3791.6,3791.5,28.91374855]
[1641342600410,5.27e-06,3791.6,3791.5,29.58547105]
[1641342601012,6.14,3794.4,3794.1,1.13390525]
[1641342601212,3.7736,3794.3,3794.1,1.13390525]
[1641342601416,6.14,3794.4,3792.9,3.7332]
[1641342601614,0.65919,3794.0,3792.9,3.7332]
[1641342601856,0.65919,3794.0,3792.8,1.31834]
[1641342602253,0.65919,3794.0,3793.1,1.38554652]
[1641342602955,0.65919,3794.0,3793.2,1.40554003]
[1641342603353,0.65919,3794.0,3793.2,3.77125053]
[1641342603554,1.3,3794.3,3793.3,0.65911]
[1641342603758,1.6,3794.3,3793.3,0.65911]
[1641342604655,1.6,3794.3,3793.2,1.40554003]
[1641342604857,0.65919,3794.0,3793.2,1.40554003]
[1641342605057,0.95919,3794.0,3793.2,1.40554003]
[1641342605256,0.3,3794.0,3793.2,1.40554003]
[1641342605597,0.3,3794.0,3791.5,1.3310525]
[1641342605598,0.3,3793.2,3791.5,1.3310525]
[1641342605778,2.75549983,3793.1,3791.7,3.1683]
[1641342605977,2.75549983,3793.1,3791.9,3.9906]
[1641342606177,3.05549983,3793.1,3792.3,1.00559798]
[1641342606380,0.65939,3792.9,3792.3,1.00559798]
[1641342606576,0.65939,3792.9,3792.4,1.21029847]
[1641342607178,0.14249464,3794.3,3792.4,1.21029847]
[1641342607179,4.2883,3793.8,3792.4,1.21029847]
[1641342607380,0.65929,3793.4,3792.9,1.05875705]
[1641342607580,0.3,3793.6,3792.9,1.05875705]
[1641342607778,0.382,3793.8,3792.9,1.05875705]
[1641342608178,0.01080005,3793.5,3792.9,1.05875705]
[1641342608580,0.01023162,3793.4,3792.9,1.05875705]
[1641342609077,0.65927,3793.6,3792.9,1.05875705]
[1641342609078,0.0096632,3793.3,3792.9,1.05875705]
[1641342609278,0.6736931,3793.2,3792.9,1.05875705]
[1641342609482,0.68278788,3793.2,3792.9,1.05875705]
[1641342609680,0.00852635,3793.1,3792.9,1.05875705]
[1641342610081,0.00795793,3793.0,3792.9,1.05875705]
[1641342610683,0.00795793,3793.0,3792.9,1.71788705]
[1641342610881,0.00795793,3793.0,3792.9,6.16788705]
[1641342611080,5.793e-05,3793.0,3792.9,25.08216691]
[1641342611280,5.793e-05,3793.0,3792.9,21.58788705]
[1641342611480,5.793e-05,3793.0,3792.9,6.16788705]
[1641342611680,5.793e-05,3793.0,3792.9,9.22802821]
[1641342612484,5.793e-05,3793.0,3792.9,25.94802821]
[1641342612684,5.793e-05,3793.0,3792.9,26.26033534]
[1641342612885,5.793e-05,3793.0,3792.9,23.71079418]
[1641342613122,6.15599314,3795.2,3793.0,5.45]
[1641342613323,6.15599314,3795.2,3793.9,0.01239329]
[1641342613527,6.15599314,3795.2,3794.4,0.65885]
[1641342613528,0.00693689,3795.1,3794.4,0.65885]
[1641342613722,0.00693689,3795.1,3794.7,0.65879]
[1641342613923,6.15599314,3795.2,3794.7,1.41169]
[1641342613924,0.00636847,3795.0,3794.7,1.41169]
[1641342614319,6.15599314,3795.2,3794.8,5.09056569]
[1641342614320,0.00580004,3794.9,3794.8,5.09056569]
[1641342614918,0.00580004,3794.9,3794.8,1.79932269]
[1641342615519,0.00580004,3794.9,3794.8,4.22626329]
[1641342615723,0.00580004,3794.9,3794.8,4.39932269]
[1641342615924,0.00580004,3794.9,3794.8,6.7977636]
[1641342616123,6.09580004,3795.9,3794.8,1.14056569]
[1641342616324,6.09580004,3795.9,3794.8,3.47032057]
[1641342616525,0.00511582,3795.8,3794.8,1.14056569]
[1641342616768,6.14,3795.5,3794.8,1.14056569]
[1641342617166,0.00284212,3795.4,3794.8,1.14056569]
[1641342617567,0.0022737,3795.3,3794.8,1.14056569]
[1641342617967,0.00170527,3795.2,3794.8,1.14056569]
[1641342618368,0.00113685,3795.1,3794.8,1.14056569]
[1641342618768,0.00284212,3795.4,3794.8,1.14056569]
[1641342619169,0.0022737,3795.3,3794.8,1.14056569]
[1641342619570,6.14,3795.5,3794.8,1.14056569]
[1641342619571,0.00170527,3795.2,3794.8,1.14056569]
[1641342619974,0.00113685,3795.1,3794.8,1.14056569]
[1641342620373,0.00284212,3795.4,3794.8,1.14056569]
[1641342620923,0.0022737,3795.3,3795.0,0.65878]
[1641342621324,0.00170527,3795.2,3795.0,0.65878]
[1641342621524,0.00170527,3795.2,3794.8,1.14056569]
[1641342621723,0.00113685,3795.1,3794.8,1.14056569]
[1641342622123,0.65885,3796.2,3795.7,1.33071355]
[1641342622324,0.65885,3796.2,3794.8,1.14056569]
[1641342622325,0.95885,3796.2,3794.8,1.14056569]
[1641342622527,0.00682109,3796.1,3794.8,1.14056569]
[1641342622923,0.65885,3796.2,3794.8,1.14056569]
[1641342622924,0.00625266,3796.0,3794.8,1.14056569]
[1641342623423,0.00568424,3795.9,3795.4,1.10068596]
[1641342623826,0.00682109,3796.1,3795.4,1.10068596]
[1641342624275,0.00625266,3796.0,3795.4,1.10068596]
[1641342624660,0.6588,3796.4,3795.4,1.10068596]
[1641342624661,0.00568424,3795.9,3795.4,1.10068596]
[1641342625066,0.00795793,3796.3,3795.4,1.10068596]
[1641342625469,0.00738951,3796.2,3795.4,1.10068596]
[1641342625968,0.00682109,3796.1,3795.4,1.10068596]
[1641342626367,0.00625266,3796.0,3795.4,1.10068596]
[1641342626768,0.00568424,3795.9,3795.4,1.10068596]
[1641342627168,1.0,3796.0,3795.4,1.10068596]
[1641342627369,1.3,3796.0,3795.4,1.10068596]
[1641342627571,0.00568424,3795.9,3795.4,1.10068596]
[1641342628014,0.66456424,3795.9,3795.4,1.10068596]
[1641342628224,0.72631109,3795.9,3795.4,1.10068596]
[1641342632662,0.65892,3795.7,3794.5,1.1619]
[1641342632865,2.50223435,3795.8,3794.5,1.1619]
[1641342632866,2.64045279,3795.8,3794.5,1.1619]
[1641342633063,3.09762369,3795.6,3794.6,0.00170527]
[1641342633263,3.06720237,3795.6,3794.6,0.00170527]
[1641342633463,1.00341055,3795.5,3794.6,0.00170527]
[1641342633762,0.00284212,3795.4,3795.0,1.35350411]
[1641342634164,0.0022737,3795.3,3795.0,1.35350411]
[1641342634563,0.00170527,3795.2,3795.0,1.35350411]
[1641342634763,0.00170527,3795.2,3794.5,0.00227369]
[1641342634965,0.65903,3795.0,3794.5,0.00227369]
[1641342635265,2.83760128,3794.9,3794.0,0.00511581]
[1641342635518,0.3,3794.8,3794.0,0.00511581]
[1641342635712,0.3,3794.8,3793.6,0.0073895]
[1641342635713,2.26700033,3794.7,3793.6,0.0073895]
[1641342635914,2.26700033,3794.7,3794.4,1.50297871]
[1641342636315,0.65911,3794.6,3794.5,0.00227369]
[1641342636919,0.95911,3794.6,3794.5,0.00227369]
[1641342637117,1.6,3794.6,3793.6,0.0073895]
[1641342637415,1.6,3794.6,3793.3,0.00909477]
[1641342637416,0.382,3794.5,3793.3,0.00909477]
[1641342637616,0.65924,3794.1,3793.3,0.00909477]
[1641342637815,0.65928,3794.1,3793.3,0.00909477]
[1641342638021,0.6592633,3794.0,3793.3,0.00909477]
[1641342638219,0.6592633,3794.0,3793.1,0.01023162]
[1641342638417,0.6592633,3794.0,3793.0,1.35493837]
[1641342638616,0.6592633,3794.0,3793.1,0.01023162]
[1641342639017,0.65927,3793.7,3793.1,0.01023162]
[1641342640469,0.65921,3794.0,3793.6,1.46784939]
[1641342640868,0.65921,3794.0,3793.7,0.00682108]
[1641342641669,0.65921,3794.0,3793.1,0.01023162]
[1641342641969,2.6596838,3794.2,3793.1,0.01023162]
[1641342641970,0.382,3794.2,3793.1,0.01023162]
[1641342642170,1.70029,3794.7,3793.1,0.01023162]
[1641342642369,1.70029,3794.7,3793.1,0.64843162]
[1641342642571,0.0616004,3793.9,3793.1,0.64843162]
[1641342642771,0.0616004,3793.9,3793.2,0.00966319]
[1641342643217,0.0616004,3793.9,3793.3,1.75665917]
[1641342643717,0.0616004,3793.9,3793.4,0.66756635]
[1641342643915,0.0616004,3793.9,3793.4,2.28579631]
[1641342644113,0.0616004,3793.9,3793.5,0.00795792]
[1641342644314,0.0616004,3793.9,3793.6,0.65897]
[1641342644515,0.00113685,3795.1,3793.7,15.42]
[1641342644716,0.00113685,3795.1,3794.3,0.65887]
[1641342644916,0.00113685,3795.1,3794.3,0.6213]
[1641342645117,0.00113685,3795.1,3794.4,0.00284211]
[1641342645521,0.00113685,3795.1,3795.0,1.0192022]
[1641342645725,0.00113685,3795.1,3795.0,3.5692022]
[1641342645919,0.00113685,3795.1,3795.0,1.0192022]
[1641342648163,0.05051353,3795.1,3795.0,1.0192022]
[1641342651423,0.05051353,3795.1,3795.0,3.0192022]
[1641342652425,0.05051353,3795.1,3795.0,5.0192022]
[1641342652624,0.05051353,3795.1,3795.0,3.0192022]
[1641342655264,0.05051353,3795.1,3795.0,6.85165475]
[1641342655562,0.05051353,3795.1,3795.0,4.0192022]
[1641342655767,0.01599314,3795.5,3795.3,0.65864]
[1641342655964,0.01599314,3795.5,3795.3,17.01134]
[1641342656167,0.00170527,3795.4,3795.3,17.01134]
[1641342656564,0.01599314,3796.2,3795.3,17.01134]
[1641342656769,0.01599314,3796.2,3795.4,15.42]
[1641342657067,0.00568424,3796.1,3795.6,1.31732]
[1641342657268,0.00568424,3796.1,3795.7,1.31644326]
[1641342657469,0.00511581,3796.0,3795.7,1.31644326]
[1641342657867,0.00454739,3795.9,3795.7,1.31644326]
[1641342658144,0.6587751,3796.7,3795.8,3.35]
[1641342658344,1.31752,3796.8,3795.7,1.31644326]
[1641342658549,0.00113685,3796.1,3795.7,1.31644326]
[1641342659545,0.00113685,3796.1,3795.7,1.97514326]
[1641342664475,0.04071167,3796.1,3795.7,1.97514326]
[1641342670166,0.04071167,3796.1,3795.8,0.65867]
[1641342670371,0.04071167,3796.1,3795.9,15.42]
[1641342671366,6.14,3797.4,3796.1,15.42]
[1641342671569,6.14,3797.4,3796.5,0.65855]
[1641342671772,0.00682108,3797.3,3796.5,0.9519]
[1641342672269,0.00625265,3797.2,3796.5,0.9519]
[1641342672568,0.00568423,3797.1,3796.5,0.9519]
[1641342672869,0.00568423,3797.1,3796.2,1.3169753]
[1641342672870,2.49215028,3797.6,3797.0,1.5197903]
[1641342673120,3.7323709,3797.7,3797.0,1.5197903]
[1641342673320,0.00682108,3797.3,3797.0,1.5197903]
[1641342673721,0.00625265,3797.2,3797.0,1.5197903]
[1641342674121,0.00568423,3797.1,3797.0,1.5197903]
[1641342677859,0.03743595,3797.1,3797.0,1.5197903]
[1641342678663,0.64602595,3797.5,3797.0,1.5197903]
[1641342679063,0.00170527,3797.4,3797.0,1.5197903]
[1641342679566,3.3738109,3797.7,3797.0,1.5197903]
[1641342679567,0.65974685,3797.3,3797.0,1.5197903]
[1641342679962,0.65861,3797.3,3797.0,1.5197903]
[1641342681820,0.00284212,3797.6,3797.0,1.5197903]
[1641342682221,3.0738109,3797.7,3797.0,1.5197903]
[1641342682222,0.00227369,3797.5,3797.0,1.5197903]
[1641342682618,0.00284212,3797.6,3797.0,1.5197903]
[1641342683018,0.00227369,3797.5,3797.0,1.5197903]
[1641342683417,0.00284212,3797.6,3797.0,1.5197903]
[1641342683819,0.03308085,3797.5,3797.0,1.5197903]
[1641342684019,0.69165085,3797.5,3797.0,1.5197903]
[1641342684272,0.68937716,3797.5,3797.0,1.5197903]
[1641342685275,0.03080716,3797.5,3797.0,1.5197903]
[1641342686479,0.03080716,3797.5,3797.1,1.3169]
[1641342686679,0.03080716,3797.5,3797.1,2.76697]
[1641342687383,0.03080716,3797.5,3797.1,2.10856]
[1641342687784,0.03080716,3797.5,3797.1,2.76697]
[1641342688409,0.03080716,3797.5,3797.2,1.31679]
[1641342688610,0.03080716,3797.5,3797.3,0.65838]
[1641342688809,0.03080716,3797.5,3797.3,1.44864]
[1641342689108,0.03080716,3797.5,3797.3,1.72514]
[1641342689514,9.3638,3799.1,3798.6,6.76359222]
[1641342689715,9.3638,3799.1,3798.7,1.96323873]
[1641342689716,6.14,3799.1,3798.7,1.96323873]
[1641342689914,6.14,3799.1,3798.7,2.62145873]
[1641342690311,0.00850357,3799.6,3798.7,1.30505873]
[1641342690514,0.00850357,3799.6,3798.8,1.15993983]
[1641342690723,0.01080004,3799.5,3798.8,1.15993983]
[1641342691017,0.00850357,3799.6,3799.0,0.6581]
[1641342691018,0.01023162,3799.4,3799.0,0.6581]
[1641342691418,0.0096632,3799.3,3799.0,0.6581]
[1641342691870,0.0096632,3799.3,3798.9,1.31622]
[1641342691871,0.00909477,3799.2,3798.9,1.31622]
[1641342692069,0.00909477,3799.2,3798.8,1.15993983]
[1641342692271,0.00850357,3799.6,3798.8,1.15993983]
[1641342692272,0.00852635,3799.1,3798.8,1.15993983]
[1641342692669,0.00850357,3799.6,3798.8,1.15993983]
[1641342692670,0.00795793,3799.0,3798.8,1.15993983]
[1641342692871,0.00882561,3799.0,3798.9,6.55730543]
[1641342693070,0.00086768,3799.0,3798.9,4.16000563]
[1641342693470,0.00086768,3799.0,3798.9,6.54181003]
[1641342693671,0.00086768,3799.0,3798.9,6.55099421]
[1641342693870,0.00086768,3799.0,3798.9,3.50099421]
[1641342694272,0.00086768,3799.0,3798.9,1.11000563]
[1641342694674,0.00086768,3799.0,3798.9,3.51990558]
[1641342695526,0.00850357,3799.6,3799.0,5.45]
[1641342695729,0.00850357,3800.0,3799.1,3.9943944]
[1641342695930,3.86441878,3800.7,3799.4,1.31596]
[1641342696130,3.86441878,3800.7,3799.5,2.32300693]
[1641342696332,0.0022737,3799.9,3799.6,1.14869604]
[1641342696730,0.01020884,3799.8,3799.6,1.14869604]
[1641342696930,0.00170527,3799.8,3799.7,0.65802]
[1641342697231,0.00850357,3800.5,3799.7,0.65802]
[1641342697530,0.00850357,3799.8,3799.7,0.65802]
[1641342697735,0.01361938,3800.4,3799.7,0.65802]
[1641342697930,0.00170527,3799.8,3799.7,0.65802]
[1641342698131,0.00850357,3799.8,3799.7,0.65802]
[1641342698331,0.01020884,3799.8,3799.7,0.65802]
[1641342698531,0.00170527,3799.8,3799.6,2.46470604]
[1641342698731,0.00850357,3799.7,3799.6,2.46470604]
[1641342698932,0.00964042,3799.7,3799.6,2.46470604]
[1641342699762,0.00964042,3799.7,3799.6,1.14869604]
[1641342700368,0.00964042,3799.7,3799.5,1.31603]
[1641342700562,0.04042834,3799.7,3799.5,1.31603]
[1641342700767,0.04042834,3799.7,3799.3,1.97422]
[1641342700967,0.04042834,3799.7,3799.4,1.31619]
[1641342701966,0.04042834,3799.7,3799.6,3.57955809]
[1641342702567,0.04042834,3799.7,3799.6,5.9827558]
[1641342703424,0.04128046,3799.7,3799.6,5.9827558]
[1641342704017,0.04128046,3799.7,3799.6,3.4827558]
[1641342704217,0.04128046,3799.7,3799.6,1.07955809]
[1641342704819,0.04128046,3799.7,3799.5,1.3162]
[1641342705020,0.04128046,3799.7,3799.2,0.00170527]
[1641342705418,0.04128046,3799.7,3798.9,0.00341054]
[1641342705626,0.04128046,3799.7,3799.0,1.31634]
[1641342705822,0.03277689,3799.7,3799.0,2.32169685]
[1641342706021,0.03277689,3799.7,3799.1,0.00227369]
[1641342708366,0.03277689,3799.7,3799.3,0.65818]
[1641342709770,0.03277689,3799.7,3799.3,1.31629]
[1641342709968,0.03277689,3799.7,3799.4,1.31606]
[1641342712920,0.03277689,3799.7,3799.4,1.97407]
[1641342713821,0.03277689,3799.7,3799.4,2.27407]
[1641342714702,0.03277689,3799.7,3799.4,20.03195864]
[1641342714904,0.03277689,3799.7,3799.4,17.69407]
[1641342718140,0.03277689,3799.7,3799.4,18.3520462]
[1641342718336,0.03277689,3799.7,3799.5,0.65798]
[1641342718544,0.03277689,3799.7,3799.6,7.34369297]
[1641342718840,0.03277689,3799.7,3799.6,2.34369297]
[1641342719644,0.03277689,3799.7,3799.6,4.94369297]
[1641342720042,0.03277689,3799.7,3799.6,2.34369297]
[1641342721243,0.03277689,3799.7,3799.5,0.65798]
[1641342721443,0.03277689,3799.7,3799.6,6.60095204]
[1641342721879,0.03277689,3799.7,3799.6,2.35095204]
[1641342722682,0.03277689,3799.7,3799.5,0.65798]
[1641342724886,0.03277689,3799.7,3799.5,0.95798]
[1641342725717,0.03277689,3799.7,3799.5,0.65798]
[1641342728920,0.03164004,3799.7,3799.5,0.65798]
[1641342731775,0.02794004,3799.7,3799.5,0.65798]
[1641342733814,0.02794004,3799.7,3799.5,17.39391]
[1641342734417,5.212e-05,3799.7,3799.6,12.40071208]
[1641342734619,0.01546325,3800.1,3799.7,5.45]
[1641342734822,0.01546325,3800.1,3800.0,20.8827923]
[1641342735018,0.01546325,3800.1,3800.0,21.2647923]
[1641342735218,3.0143,3801.4,3800.1,5.45]
[1641342735419,3.0143,3801.4,3800.9,1.02587231]
[1641342735621,0.01023163,3801.3,3800.9,1.02587231]
[1641342736020,0.0096632,3801.2,3801.1,0.65785]
[1641342736219,0.65784,3802.0,3801.1,0.65785]
[1641342736220,0.65180901,3802.0,3801.1,5.30785]
[1641342736621,0.00113685,3801.4,3801.1,0.65785]
[1641342737271,0.00113685,3801.4,3801.1,3.00612867]
[1641342737672,0.00113685,3801.4,3801.1,0.65785]
[1641342737879,0.00113685,3801.4,3801.1,3.14768396]
[1641342738276,0.00113685,3801.4,3801.1,3.80543396]
[1641342738876,0.00113685,3801.4,3801.1,1.45379997]
[1641342739075,0.00113685,3801.4,3801.2,1.31548]
[1641342739284,0.00113685,3801.4,3801.1,0.65785]
[1641342742525,0.03191146,3801.4,3801.1,0.65785]
[1641342745675,0.03191146,3801.4,3801.2,0.6578]
[1641342746072,0.00113685,3801.4,3801.2,0.6578]
[1641342746273,0.01546321,3802.7,3801.4,5.45]
[1641342746473,0.01546321,3802.7,3801.5,18.63047119]
[1641342746671,0.00625266,3802.5,3802.0,0.65762]
[1641342746875,0.00625266,3802.5,3802.1,2.38983869]
[1641342747072,0.00568423,3802.4,3802.1,2.38983869]
[1641342747273,0.00568423,3802.4,3802.3,4.42222176]
[1641342747474,0.01546321,3802.7,3802.3,1.17222176]
[1641342747674,0.01546321,3802.7,3802.4,0.6576]
[1641342747873,0.00682108,3802.6,3802.4,0.6576]
[1641342748323,0.00625266,3802.5,3802.4,0.6576]
[1641342748627,0.00625266,3802.5,3802.3,2.48741176]
[1641342749023,5.26259957,3802.8,3802.4,3.0119921]
[1641342749225,5.26259957,3803.0,3802.4,0.6576]
[1641342749427,0.00170527,3802.7,3802.6,1.97274]
[1641342749623,0.00170527,3802.7,3802.6,4.30977994]
[1641342750025,0.00170527,3802.7,3802.6,1.97274]
[1641342750633,0.00170527,3802.7,3802.6,3.35015163]
[1641342753313,5.21430484,3802.8,3802.7,2.7]
[1641342753513,0.007,3803.1,3802.6,3.35015163]
[1641342753514,5.21430484,3803.0,3802.6,3.35015163]
[1641342753714,5.21430484,3803.0,3802.8,0.65761]
[1641342753915,0.00170527,3803.0,3802.9,7.87407943]
[1641342754219,0.6574683,3804.3,3803.0,5.58819997]
[1641342754418,6.14,3804.6,3803.8,1.3304984]
[1641342754621,6.14,3804.6,3804.0,1.31464]
[1641342754816,6.14,3804.6,3804.1,0.65732]
[1641342755014,6.14,3804.6,3804.2,2.54072505]
[1641342756226,6.14,3804.6,3804.2,3.25692505]
[1641342756627,6.14,3804.6,3804.3,5.11442743]
[1641342756628,0.88238,3804.6,3804.3,5.11442743]
[1641342756828,0.2,3805.0,3804.4,0.65724]
[1641342757028,0.2,3805.0,3804.6,0.65721]
[1641342757232,0.01080005,3804.9,3804.6,0.65721]
[1641342757629,0.01023163,3804.8,3804.6,0.65721]
[1641342757828,0.01023163,3804.8,3804.7,0.65722]
[1641342758028,0.2,3805.0,3804.7,0.65722]
[1641342758428,0.01080005,3804.9,3804.8,1.25412178]
[1641342760371,0.16080005,3805.0,3804.8,1.25412178]
[1641342760866,0.11080005,3805.0,3804.8,1.25412178]
[1641342761870,0.11080005,3805.0,3804.4,2.62904]
[1641342762070,0.11080005,3805.0,3803.8,1.3304984]
[1641342762272,0.11080005,3805.0,3804.5,0.00227369]
[1641342762670,0.41080005,3805.0,3804.5,0.00227369]
[1641342763523,0.6573588,3804.9,3804.5,0.00227369]
[1641342763726,0.11080005,3805.0,3804.5,0.00227369]
[1641342764925,0.76812625,3805.0,3804.5,0.00227369]
[1641342765522,0.76947731,3805.0,3804.5,0.00227369]
[1641342765727,0.77082837,3805.0,3804.5,0.00227369]
[1641342766886,1.07082837,3805.0,3804.5,0.00227369]
[1641342767086,0.11350217,3805.0,3804.7,0.65726]
[1641342767285,0.11350217,3805.0,3804.8,2.41422494]
[1641342767486,0.11350217,3805.0,3804.8,2.42942293]
[1641342768285,0.11350217,3805.0,3804.7,1.31445]
[1641342768584,0.11350217,3805.0,3804.8,2.37565337]
[1641342768785,0.11350217,3805.0,3804.7,1.31445]
[1641342769587,0.11350217,3805.0,3804.7,0.65726]
[1641342770627,0.11350217,3805.0,3804.5,0.00227369]
[1641342772025,0.41350217,3805.0,3804.5,0.00227369]
[1641342773029,0.9573441,3804.9,3804.5,0.00227369]
[1641342773228,0.382,3804.8,3804.5,0.00227369]
[1641342773429,0.682,3804.8,3803.9,0.00568423]
[1641342774029,0.382,3804.8,3804.5,1.33999849]
[1641342774473,1.614751,3804.9,3804.6,0.00170527]
[1641342774976,1.614751,3804.9,3804.7,1.31571551]
[1641342775374,2.9295328,3804.9,3804.7,1.31571551]
[1641342775574,1.6147818,3804.9,3804.7,1.31571551]
[1641342776380,0.00270226,3804.8,3804.6,0.00170527]
[1641342776881,0.00270226,3804.8,3804.0,0.66245581]
[1641342777082,0.00270226,3804.8,3804.1,0.65733]
[1641342777284,0.00270226,3804.8,3804.2,2.54930675]
[1641342777482,0.00270226,3804.8,3804.2,0.00397896]
[1641342777685,0.00270226,3804.8,3804.3,0.00341054]
[1641342777881,0.00270226,3804.8,3804.2,2.72447968]
[1641342777882,0.00270226,3804.8,3804.2,3.38576864]
[1641342778122,0.00270226,3804.8,3804.4,0.65722]
[1641342778322,0.00270226,3804.8,3804.5,2.51052814]
[1641342778525,0.00270226,3804.8,3804.6,1.47057019]
[1641342778825,0.00270226,3804.8,3804.7,4.10113685]
[1641342779026,0.00270226,3804.8,3804.7,6.50765205]
[1641342779327,0.00270226,3804.8,3804.7,4.10113685]
[1641342779524,0.00270226,3804.8,3804.7,6.50816891]
[1641342779726,0.00270226,3804.8,3804.7,4.10113685]
[1641342779924,0.00270226,3804.8,3804.7,6.47827166]
[1641342780125,0.00270226,3804.8,3804.7,4.10113685]
[1641342780529,0.00270226,3804.8,3804.7,6.5313791]
[1641342782773,0.00270226,3804.8,3804.7,4.10113685]
[1641342783778,0.00270226,3804.8,3804.7,6.46377106]
[1641342783978,0.00270226,3804.8,3804.7,4.10113685]
[1641342784578,0.00270226,3804.8,3804.7,6.47899705]
[1641342785634,0.00270226,3804.8,3804.7,0.00113685]
[1641342786934,0.00135113,3804.8,3804.7,0.00113685]
[1641342789276,0.38335113,3804.8,3804.7,0.00113685]
[1641342789477,0.68335113,3804.8,3804.7,0.00113685]